[Event "Early-Titled-Tuesday-Blitz-October-24-2023"]
[Site "Chess.com"]
[Date "2023.10.24"]
[Round "3"]
[White "HATilay"]
[Black "falzehope0"]
[Result "1-0"]
[WhiteElo "2557"]
[BlackElo "2334"]
[TimeControl "180+1"]
[EndTime "8:27:36 PDT"]
[Termination "HATilay won on time"]

1. e4 {[%clk 0:03:00.9]} 1... d5 {[%clk 0:02:55.9]} 2. exd5 {[%clk 0:02:58.7]}
2... Nf6 {[%clk 0:02:56.2]} 3. Nf3 {[%clk 0:02:57.3]} 3... Qxd5 {[%clk
0:02:54.6]} 4. Nc3 {[%clk 0:02:56.6]} 4... Qh5 {[%clk 0:02:54.3]} 5. Be2 {[%clk
0:02:56.2]} 5... Bg4 {[%clk 0:02:53.5]} 6. h3 {[%clk 0:02:52]} 6... Nc6 {[%clk
0:02:52.7]} 7. d4 {[%clk 0:02:37.6]} 7... O-O-O {[%clk 0:02:49.5]} 8. O-O {[%clk
0:02:38.1]} 8... e5 {[%clk 0:02:46.7]} 9. d5 {[%clk 0:02:08.6]} 9... e4 {[%clk
0:02:09.5]} 10. hxg4 {[%clk 0:02:08.4]} 10... Nxg4 {[%clk 0:02:09.3]} 11. Nh4
{[%clk 0:01:54.6]} 11... f5 {[%clk 0:02:01.9]} 12. g3 {[%clk 0:01:24.2]} 12...
g5 {[%clk 0:01:46.3]} 13. Bxg4 {[%clk 0:01:17.3]} 13... fxg4 {[%clk 0:01:42.9]}
14. Nxe4 {[%clk 0:00:39.8]} 14... gxh4 {[%clk 0:01:26.1]} 15. Nf6 {[%clk
0:00:39.5]} 15... Qg6 {[%clk 0:01:13.5]} 16. Qxg4+ {[%clk 0:00:37.2]} 16... Qxg4
{[%clk 0:01:13.1]} 17. Nxg4 {[%clk 0:00:37.2]} 17... Rxd5 {[%clk 0:01:13]} 18.
gxh4 {[%clk 0:00:13]} 18... Rg8 {[%clk 0:01:08.1]} 19. Bg5 {[%clk 0:00:13.4]}
19... Be7 {[%clk 0:00:40.6]} 20. f4 {[%clk 0:00:12.9]} 20... Rd2 {[%clk
0:00:23.4]} 21. Kh1 {[%clk 0:00:03.5]} 21... Rxc2 {[%clk 0:00:19.5]} 22. Rac1
{[%clk 0:00:02.2]} 22... Rxc1 {[%clk 0:00:16.9]} 23. Rxc1 {[%clk 0:00:02.1]}
23... Bd6 {[%clk 0:00:15.1]} 24. Rf1 {[%clk 0:00:01.7]} 24... Re8 {[%clk
0:00:13.2]} 25. f5 {[%clk 0:00:02]} 25... Rf8 {[%clk 0:00:11.2]} 26. f6 {[%clk
0:00:02.3]} 26... Nd8 {[%clk 0:00:09.1]} 27. Nh6 {[%clk 0:00:02.6]} 27... Nf7
{[%clk 0:00:09.1]} 28. Nf5 {[%clk 0:00:03.3]} 28... Kd7 {[%clk 0:00:08]} 29. Kg2
{[%clk 0:00:01.7]} 29... Ke6 {[%clk 0:00:08.2]} 30. Kh3 {[%clk 0:00:01.7]} 30...
Ne5 {[%clk 0:00:07.1]} 31. Re1 {[%clk 0:00:01.6]} 31... Kd7 {[%clk 0:00:06.3]}
32. Nh6 {[%clk 0:00:01.7]} 32... Nf7 {[%clk 0:00:05.5]} 33. Ng4 {[%clk
0:00:02.1]} 33... Rg8 {[%clk 0:00:04.3]} 34. Be3 {[%clk 0:00:01.2]} 34... h5
{[%clk 0:00:03.8]} 35. Nh6 {[%clk 0:00:01.5]} 35... Rg3+ {[%clk 0:00:02.5]} 36.
Kh2 {[%clk 0:00:01.8]} 36... Rxe3+ {[%clk 0:00:01.5]} 37. Kg1 {[%clk 0:00:02]}
37... Rxe1+ {[%clk 0:00:01.2]} 38. Kf2 {[%clk 0:00:02.9]} 1-0

[Event "Early-Titled-Tuesday-Blitz-October-24-2023"]
[Site "Chess.com"]
[Date "2023.10.24"]
[Round "3"]
[White "Politov_Pavel"]
[Black "KorolDimitriy75"]
[Result "0-1"]
[WhiteElo "2052"]
[BlackElo "2338"]
[TimeControl "180+1"]
[EndTime "8:27:36 PDT"]
[Termination "KorolDimitriy75 won by resignation"]

1. d4 {[%clk 0:03:00.9]} 1... Nf6 {[%clk 0:02:59.7]} 2. c4 {[%clk 0:02:59.1]}
2... c5 {[%clk 0:02:59.7]} 3. d5 {[%clk 0:02:58.1]} 3... b5 {[%clk 0:03:00]} 4.
cxb5 {[%clk 0:02:56.8]} 4... a6 {[%clk 0:03:00.4]} 5. bxa6 {[%clk 0:02:56.3]}
5... g6 {[%clk 0:03:00.5]} 6. Nc3 {[%clk 0:02:55.1]} 6... Bxa6 {[%clk 0:03:01]}
7. Nf3 {[%clk 0:02:52.2]} 7... d6 {[%clk 0:03:01.3]} 8. e4 {[%clk 0:02:52]} 8...
Bxf1 {[%clk 0:03:00.8]} 9. Kxf1 {[%clk 0:02:52.9]} 9... Bg7 {[%clk 0:03:01.3]}
10. g3 {[%clk 0:02:48.4]} 10... Nbd7 {[%clk 0:03:01.5]} 11. Kg2 {[%clk
0:02:47.8]} 11... O-O {[%clk 0:03:02.3]} 12. a4 {[%clk 0:02:33.2]} 12... Qb8
{[%clk 0:03:02]} 13. Ra3 {[%clk 0:02:31.6]} 13... Qb4 {[%clk 0:03:02.6]} 14. Re1
{[%clk 0:02:29.3]} 14... Nb6 {[%clk 0:03:00.7]} 15. e5 {[%clk 0:02:09.2]} 15...
dxe5 {[%clk 0:01:41.3]} 16. Nxe5 {[%clk 0:02:05.9]} 16... Nbxd5 {[%clk 0:01:34]}
17. Nxd5 {[%clk 0:01:37.5]} 17... Qb7 {[%clk 0:01:33.9]} 18. Rd3 {[%clk
0:01:30.1]} 18... e6 {[%clk 0:01:27.9]} 19. Nc4 {[%clk 0:01:05.4]} 19... exd5
{[%clk 0:01:12.6]} 20. Na3 {[%clk 0:00:50.9]} 20... d4+ {[%clk 0:00:56]} 21. Kg1
{[%clk 0:00:44.1]} 21... Nd5 {[%clk 0:00:48.2]} 22. Qf3 {[%clk 0:00:27.4]} 22...
Rxa4 {[%clk 0:00:34]} 23. Rb3 {[%clk 0:00:23.3]} 23... Qa8 {[%clk 0:00:20.4]}
24. Nb5 {[%clk 0:00:20.5]} 24... Nb4 {[%clk 0:00:19.5]} 25. Qxa8 {[%clk
0:00:19]} 25... Rfxa8 {[%clk 0:00:17.7]} 26. Nc7 {[%clk 0:00:18.7]} 26... Rc8
{[%clk 0:00:17]} 27. Nb5 {[%clk 0:00:16.7]} 27... c4 {[%clk 0:00:13.5]} 28. Rf3
{[%clk 0:00:15.6]} 28... Nd3 {[%clk 0:00:11.4]} 29. Re7 {[%clk 0:00:08.4]} 29...
Rf8 {[%clk 0:00:06.3]} 30. Nd6 {[%clk 0:00:05]} 30... Ra1 {[%clk 0:00:05.7]} 31.
Nxf7 {[%clk 0:00:02.8]} 31... Rxc1+ {[%clk 0:00:05.8]} 32. Kg2 {[%clk
0:00:02.7]} 32... Ne1+ {[%clk 0:00:06.1]} 33. Rxe1 {[%clk 0:00:02.1]} 33... Rxe1
{[%clk 0:00:05.7]} 34. Nh6+ {[%clk 0:00:02.6]} 34... Bxh6 {[%clk 0:00:05.5]} 35.
Rxf8+ {[%clk 0:00:02.3]} 35... Bxf8 {[%clk 0:00:06.4]} 0-1

[Event "Early-Titled-Tuesday-Blitz-October-24-2023"]
[Site "Chess.com"]
[Date "2023.10.24"]
[Round "3"]
[White "SaqoChess_Twitch"]
[Black "amanjazu"]
[Result "1-0"]
[WhiteElo "2574"]
[BlackElo "2388"]
[TimeControl "180+1"]
[EndTime "8:27:38 PDT"]
[Termination "SaqoChess_Twitch won by resignation"]

1. d4 {[%clk 0:03:00.9]} 1... f5 {[%clk 0:02:58.8]} 2. c4 {[%clk 0:02:57.2]}
2... Nf6 {[%clk 0:02:58.5]} 3. Nc3 {[%clk 0:02:57.1]} 3... g6 {[%clk 0:02:58.1]}
4. Nf3 {[%clk 0:02:52.3]} 4... Bg7 {[%clk 0:02:59]} 5. g3 {[%clk 0:02:51.8]}
5... O-O {[%clk 0:02:58.4]} 6. Bg2 {[%clk 0:02:52.5]} 6... d6 {[%clk 0:02:58.8]}
7. O-O {[%clk 0:02:53.4]} 7... Qe8 {[%clk 0:02:57.9]} 8. b3 {[%clk 0:02:52.9]}
8... c6 {[%clk 0:02:55.9]} 9. Ba3 {[%clk 0:02:52.7]} 9... h6 {[%clk 0:02:54.2]}
10. Re1 {[%clk 0:02:52.5]} 10... Ne4 {[%clk 0:02:51.1]} 11. Qc2 {[%clk
0:02:51.8]} 11... Nxc3 {[%clk 0:02:25.5]} 12. Qxc3 {[%clk 0:02:52.7]} 12... g5
{[%clk 0:02:14.8]} 13. e4 {[%clk 0:02:51.8]} 13... fxe4 {[%clk 0:02:15.2]} 14.
Rxe4 {[%clk 0:02:51.1]} 14... Bf5 {[%clk 0:02:15.7]} 15. Re3 {[%clk 0:02:50]}
15... c5 {[%clk 0:02:06.8]} 16. Rae1 {[%clk 0:02:49.5]} 16... Nc6 {[%clk
0:02:06.1]} 17. Qd2 {[%clk 0:02:42.2]} 17... cxd4 {[%clk 0:02:00.2]} 18. R3e2
{[%clk 0:02:41.4]} 18... Bg4 {[%clk 0:01:58.5]} 19. Nxg5 {[%clk 0:02:13.6]}
19... hxg5 {[%clk 0:01:30.9]} 20. Bd5+ {[%clk 0:02:09.1]} 20... Kh8 {[%clk
0:01:24.7]} 21. Bxd6 {[%clk 0:01:44.8]} 21... Bxe2 {[%clk 0:01:18.5]} 22. Rxe2
{[%clk 0:01:40]} 22... Qh5 {[%clk 0:01:15.8]} 23. Ba3 {[%clk 0:01:13.8]} 23...
Ne5 {[%clk 0:01:08.4]} 24. Rxe5 {[%clk 0:00:40.3]} 24... Bxe5 {[%clk 0:01:07.7]}
25. Bxe7 {[%clk 0:00:41]} 25... Bf6 {[%clk 0:00:43.3]} 26. Bc5 {[%clk
0:00:34.5]} 26... Qg4 {[%clk 0:00:30.2]} 27. h3 {[%clk 0:00:27.6]} 27... Qxh3
{[%clk 0:00:24.5]} 28. Bxd4 {[%clk 0:00:28.1]} 28... Qf5 {[%clk 0:00:24.4]} 29.
Bxb7 {[%clk 0:00:23.5]} 29... Rad8 {[%clk 0:00:23.9]} 30. Bd5 {[%clk 0:00:21.1]}
30... Bxd4 {[%clk 0:00:22.1]} 31. Qxd4+ {[%clk 0:00:22]} 31... Qf6 {[%clk
0:00:22.6]} 32. Qxa7 {[%clk 0:00:22.1]} 32... Qe5 {[%clk 0:00:15.8]} 33. Qc5
{[%clk 0:00:13.7]} 33... Qe1+ {[%clk 0:00:15.1]} 34. Kg2 {[%clk 0:00:13.4]}
34... Rxd5 {[%clk 0:00:13.3]} 35. Qxf8+ {[%clk 0:00:13.2]} 35... Kh7 {[%clk
0:00:13.6]} 36. Qf7+ {[%clk 0:00:13.1]} 36... Kh6 {[%clk 0:00:13.4]} 37. Qxd5
{[%clk 0:00:12.9]} 37... g4 {[%clk 0:00:13.5]} 38. Qd6+ {[%clk 0:00:12.1]} 38...
Kh5 {[%clk 0:00:13.2]} 39. Qc5+ {[%clk 0:00:09.9]} 39... Kh6 {[%clk 0:00:12.4]}
40. Qe3+ {[%clk 0:00:10]} 1-0

[Event "Early-Titled-Tuesday-Blitz-October-24-2023"]
[Site "Chess.com"]
[Date "2023.10.24"]
[Round "3"]
[White "Cayse"]
[Black "Kildepiotr"]
[Result "1/2-1/2"]
[WhiteElo "2869"]
[BlackElo "2663"]
[TimeControl "180+1"]
[EndTime "8:27:39 PDT"]
[Termination "Game drawn - insufficient material"]

1. e4 {[%clk 0:03:00.9]} 1... e6 {[%clk 0:02:54.7]} 2. d4 {[%clk 0:03:00.5]}
2... d5 {[%clk 0:02:55.3]} 3. e5 {[%clk 0:03:01]} 3... c5 {[%clk 0:02:55]} 4. c3
{[%clk 0:03:01.7]} 4... Nc6 {[%clk 0:02:55.7]} 5. Nf3 {[%clk 0:03:01.7]} 5...
Bd7 {[%clk 0:02:56]} 6. Be2 {[%clk 0:03:00.6]} 6... Nge7 {[%clk 0:02:54.7]} 7.
Na3 {[%clk 0:02:59.8]} 7... cxd4 {[%clk 0:02:52.8]} 8. cxd4 {[%clk 0:03:00.7]}
8... Nf5 {[%clk 0:02:50.9]} 9. Nc2 {[%clk 0:03:00.9]} 9... Qb6 {[%clk
0:02:47.2]} 10. h4 {[%clk 0:02:59.6]} 10... Rc8 {[%clk 0:02:44.1]} 11. h5 {[%clk
0:02:53.9]} 11... Nb4 {[%clk 0:02:42]} 12. Nxb4 {[%clk 0:02:50.3]} 12... Bxb4+
{[%clk 0:02:42.9]} 13. Kf1 {[%clk 0:02:50.6]} 13... Bb5 {[%clk 0:02:41.5]} 14.
a3 {[%clk 0:02:40.3]} 14... Be7 {[%clk 0:02:32.2]} 15. g4 {[%clk 0:02:31]} 15...
Bxe2+ {[%clk 0:02:27.2]} 16. Kxe2 {[%clk 0:02:31.2]} 16... Qb5+ {[%clk 0:02:17]}
17. Qd3 {[%clk 0:02:24.4]} 17... Qxd3+ {[%clk 0:01:48.9]} 18. Kxd3 {[%clk
0:02:23.8]} 18... Nh6 {[%clk 0:01:49.8]} 19. Rg1 {[%clk 0:02:10.9]} 19... Kd7
{[%clk 0:01:49.4]} 20. Bd2 {[%clk 0:01:49.4]} 20... Rc6 {[%clk 0:01:49.1]} 21.
Rac1 {[%clk 0:01:40.2]} 21... Rhc8 {[%clk 0:01:47.6]} 22. Rxc6 {[%clk
0:01:39.4]} 22... Rxc6 {[%clk 0:01:48.5]} 23. Bxh6 {[%clk 0:01:20.7]} 23... gxh6
{[%clk 0:01:47.1]} 24. g5 {[%clk 0:01:21.3]} 24... hxg5 {[%clk 0:01:37.4]} 25.
Nxg5 {[%clk 0:01:21.9]} 25... Bxg5 {[%clk 0:01:35]} 26. Rxg5 {[%clk 0:01:21.4]}
26... Rb6 {[%clk 0:01:31.5]} 27. b4 {[%clk 0:01:12.8]} 27... Ra6 {[%clk
0:01:30.6]} 28. Rg7 {[%clk 0:01:09.8]} 28... Rxa3+ {[%clk 0:01:30.5]} 29. Kd2
{[%clk 0:01:08.9]} 29... Ke7 {[%clk 0:01:30.5]} 30. Rxh7 {[%clk 0:01:08.8]}
30... Rb3 {[%clk 0:01:22.3]} 31. Rh8 {[%clk 0:01:08.6]} 31... Rxb4 {[%clk
0:01:22]} 32. Kc3 {[%clk 0:01:09]} 32... Rb1 {[%clk 0:01:21.7]} 33. h6 {[%clk
0:01:07.9]} 33... Rh1 {[%clk 0:01:17.9]} 34. h7 {[%clk 0:01:01.9]} 34... a5
{[%clk 0:01:17.3]} 35. f4 {[%clk 0:00:58]} 35... Rh3+ {[%clk 0:01:15.5]} 36. Kc2
{[%clk 0:00:56.8]} 36... a4 {[%clk 0:01:15.2]} 37. f5 {[%clk 0:00:56.7]} 37...
exf5 {[%clk 0:01:15]} 38. e6 {[%clk 0:00:56.5]} 38... b5 {[%clk 0:00:48.4]} 39.
exf7 {[%clk 0:00:54.1]} 39... Kxf7 {[%clk 0:00:48.4]} 40. Rd8 {[%clk 0:00:54.8]}
40... Rxh7 {[%clk 0:00:47.9]} 41. Rxd5 {[%clk 0:00:55.4]} 41... Kg6 {[%clk
0:00:44.5]} 42. Rxb5 {[%clk 0:00:53.7]} 42... Ra7 {[%clk 0:00:44.3]} 43. d5
{[%clk 0:00:36.2]} 43... a3 {[%clk 0:00:39.8]} 44. Kb1 {[%clk 0:00:36.3]} 44...
Kg5 {[%clk 0:00:25.4]} 45. d6 {[%clk 0:00:34.4]} 45... Kg4 {[%clk 0:00:25.8]}
46. Ka2 {[%clk 0:00:23.5]} 46... f4 {[%clk 0:00:25.4]} 47. Rd5 {[%clk
0:00:24.1]} 47... Rd7 {[%clk 0:00:25]} 48. Kxa3 {[%clk 0:00:24.7]} 48... f3
{[%clk 0:00:25.2]} 49. Rd2 {[%clk 0:00:19.3]} 49... Kg3 {[%clk 0:00:23.8]} 50.
Kb4 {[%clk 0:00:19.7]} 50... f2 {[%clk 0:00:24]} 51. Rxf2 {[%clk 0:00:20.2]}
51... Kxf2 {[%clk 0:00:24.3]} 52. Kc5 {[%clk 0:00:20.9]} 52... Ke3 {[%clk
0:00:21.6]} 53. Kc6 {[%clk 0:00:21.5]} 53... Rd8 {[%clk 0:00:22]} 54. d7 {[%clk
0:00:22]} 54... Ke4 {[%clk 0:00:22.1]} 55. Kc7 {[%clk 0:00:22.7]} 55... Rxd7+
{[%clk 0:00:22.6]} 56. Kxd7 {[%clk 0:00:22.9]} 1/2-1/2

[Event "Early-Titled-Tuesday-Blitz-October-24-2023"]
[Site "Chess.com"]
[Date "2023.10.24"]
[Round "3"]
[White "SONOFHOLYGOD"]
[Black "shimastream"]
[Result "0-1"]
[WhiteElo "2509"]
[BlackElo "2976"]
[TimeControl "180+1"]
[EndTime "8:27:39 PDT"]
[Termination "shimastream won on time"]

1. d4 {[%clk 0:03:00.9]} 1... Nf6 {[%clk 0:02:56.8]} 2. c4 {[%clk 0:03:00.9]}
2... e6 {[%clk 0:02:55.2]} 3. Nf3 {[%clk 0:03:01.2]} 3... a6 {[%clk 0:02:54.5]}
4. g3 {[%clk 0:02:54.8]} 4... b5 {[%clk 0:02:54]} 5. b3 {[%clk 0:02:49.3]} 5...
Bb7 {[%clk 0:02:53]} 6. Bg2 {[%clk 0:02:48.7]} 6... Be7 {[%clk 0:02:51.6]} 7.
O-O {[%clk 0:02:48.1]} 7... O-O {[%clk 0:02:51.8]} 8. a4 {[%clk 0:02:43.3]} 8...
bxc4 {[%clk 0:02:49.1]} 9. bxc4 {[%clk 0:02:43.2]} 9... Nc6 {[%clk 0:02:47.2]}
10. a5 {[%clk 0:02:24.5]} 10... Rb8 {[%clk 0:02:41.6]} 11. Qa4 {[%clk
0:02:18.7]} 11... d5 {[%clk 0:02:36]} 12. c5 {[%clk 0:01:42.1]} 12... Ne4 {[%clk
0:02:32.2]} 13. Bf4 {[%clk 0:01:37.8]} 13... Bf6 {[%clk 0:02:19.2]} 14. Rd1
{[%clk 0:01:29.8]} 14... Ba8 {[%clk 0:02:15.7]} 15. Bd2 {[%clk 0:01:05.5]} 15...
Rb2 {[%clk 0:02:09]} 16. e3 {[%clk 0:00:48.4]} 16... e5 {[%clk 0:01:55.7]} 17.
Ra2 {[%clk 0:00:42.6]} 17... Rxa2 {[%clk 0:01:53.4]} 18. Qxa2 {[%clk 0:00:42.4]}
18... exd4 {[%clk 0:01:54.3]} 19. Nxd4 {[%clk 0:00:40.3]} 19... Nxd4 {[%clk
0:01:47.3]} 20. exd4 {[%clk 0:00:40.4]} 20... Nxf2 {[%clk 0:01:29.7]} 21. Kxf2
{[%clk 0:00:33.3]} 21... Bxd4+ {[%clk 0:01:29.8]} 22. Ke2 {[%clk 0:00:21.2]}
22... Qf6 {[%clk 0:01:08.4]} 23. Bf4 {[%clk 0:00:20]} 23... Re8+ {[%clk
0:01:04.9]} 24. Kd2 {[%clk 0:00:17.9]} 24... g5 {[%clk 0:01:02.1]} 25. Bxd5
{[%clk 0:00:15.2]} 25... gxf4 {[%clk 0:00:55]} 26. Bxa8 {[%clk 0:00:15.2]} 26...
Rxa8 {[%clk 0:00:48.3]} 27. Qd5 {[%clk 0:00:04.7]} 27... Rd8 {[%clk 0:00:48.1]}
28. Qh5 {[%clk 0:00:04.2]} 28... f3 {[%clk 0:00:46.7]} 29. Kc2 {[%clk
0:00:03.9]} 29... f2 {[%clk 0:00:45.3]} 30. Rf1 {[%clk 0:00:04]} 30... Rb8
{[%clk 0:00:34.3]} 31. Qg4+ {[%clk 0:00:04.1]} 31... Kf8 {[%clk 0:00:33.8]} 32.
Nd2 {[%clk 0:00:04.5]} 32... Rb2+ {[%clk 0:00:33.9]} 33. Kd3 {[%clk 0:00:04.9]}
33... Bxc5 {[%clk 0:00:30.8]} 34. Qc8+ {[%clk 0:00:04.2]} 34... Kg7 {[%clk
0:00:30.6]} 35. Qg4+ {[%clk 0:00:04.7]} 35... Qg6+ {[%clk 0:00:26.1]} 36. Qxg6+
{[%clk 0:00:05.2]} 36... hxg6 {[%clk 0:00:27]} 37. Ne4 {[%clk 0:00:05.6]} 37...
Ba7 {[%clk 0:00:27.3]} 38. h4 {[%clk 0:00:04.7]} 38... Rb3+ {[%clk 0:00:24.4]}
39. Ke2 {[%clk 0:00:04.2]} 39... Re3+ {[%clk 0:00:24.4]} 40. Kxf2 {[%clk
0:00:03.7]} 40... Rxe4+ {[%clk 0:00:24.5]} 41. Kg2 {[%clk 0:00:04.6]} 41... Ra4
{[%clk 0:00:22.9]} 42. Rc1 {[%clk 0:00:04.1]} 42... Ra2+ {[%clk 0:00:23]} 43.
Kh3 {[%clk 0:00:03.5]} 43... Rxa5 {[%clk 0:00:23.9]} 44. Rc6 {[%clk 0:00:02.3]}
44... Bb6 {[%clk 0:00:23.4]} 45. g4 {[%clk 0:00:02.8]} 45... Rc5 {[%clk
0:00:23.3]} 0-1

[Event "Early-Titled-Tuesday-Blitz-October-24-2023"]
[Site "Chess.com"]
[Date "2023.10.24"]
[Round "3"]
[White "Payyappat"]
[Black "Sofia_Blokhin"]
[Result "1-0"]
[WhiteElo "2497"]
[BlackElo "2237"]
[TimeControl "180+1"]
[EndTime "8:27:39 PDT"]
[Termination "Payyappat won on time"]

1. e4 {[%clk 0:03:00.9]} 1... c5 {[%clk 0:02:59.5]} 2. Nf3 {[%clk 0:03:00.3]}
2... d6 {[%clk 0:02:59.2]} 3. d4 {[%clk 0:03:01.2]} 3... cxd4 {[%clk 0:02:58.9]}
4. Nxd4 {[%clk 0:03:02.1]} 4... a6 {[%clk 0:02:59.4]} 5. Nc3 {[%clk 0:03:01.7]}
5... Nf6 {[%clk 0:02:59.1]} 6. h4 {[%clk 0:02:59.4]} 6... e5 {[%clk 0:02:59]} 7.
Nb3 {[%clk 0:02:57.9]} 7... Be7 {[%clk 0:02:57.4]} 8. f4 {[%clk 0:02:57.5]} 8...
exf4 {[%clk 0:02:49.4]} 9. Bxf4 {[%clk 0:02:58.4]} 9... Nc6 {[%clk 0:02:48.4]}
10. Qd2 {[%clk 0:02:57.9]} 10... Qc7 {[%clk 0:02:32.8]} 11. O-O-O {[%clk
0:02:41]} 11... Ne5 {[%clk 0:02:31.7]} 12. Be2 {[%clk 0:02:38.7]} 12... O-O
{[%clk 0:02:30]} 13. Rhg1 {[%clk 0:02:31.6]} 13... Be6 {[%clk 0:02:26.6]} 14. g4
{[%clk 0:02:30.8]} 14... b5 {[%clk 0:02:12.6]} 15. g5 {[%clk 0:02:28.4]} 15...
Nfd7 {[%clk 0:02:10.9]} 16. h5 {[%clk 0:02:25.3]} 16... b4 {[%clk 0:01:58]} 17.
Nd5 {[%clk 0:02:20]} 17... Bxd5 {[%clk 0:01:57.1]} 18. exd5 {[%clk 0:02:19.1]}
18... a5 {[%clk 0:01:53.2]} 19. Nd4 {[%clk 0:02:14.7]} 19... Qc5 {[%clk
0:01:42.3]} 20. Nf5 {[%clk 0:02:09.3]} 20... Rfe8 {[%clk 0:01:39.4]} 21. g6
{[%clk 0:01:48.9]} 21... fxg6 {[%clk 0:01:35.5]} 22. hxg6 {[%clk 0:01:49.8]}
22... Nxg6 {[%clk 0:01:32.1]} 23. Bh6 {[%clk 0:01:44.4]} 23... Bf6 {[%clk
0:01:10]} 24. Bd3 {[%clk 0:01:38.2]} 24... Nde5 {[%clk 0:01:01.8]} 25. Be3
{[%clk 0:01:07.9]} 25... Qc7 {[%clk 0:00:44.4]} 26. Kb1 {[%clk 0:01:01]} 26...
Rac8 {[%clk 0:00:42.1]} 27. Bd4 {[%clk 0:00:56.3]} 27... Nf3 {[%clk 0:00:39.6]}
28. Qf2 {[%clk 0:00:45.8]} 28... Nxd4 {[%clk 0:00:29.3]} 29. Nxd4 {[%clk
0:00:44.4]} 29... Qc5 {[%clk 0:00:12.2]} 30. Bf5 {[%clk 0:00:28.9]} 30... Bxd4
{[%clk 0:00:10.4]} 31. Rxd4 {[%clk 0:00:24.6]} 31... Rc7 {[%clk 0:00:10]} 32.
Rd2 {[%clk 0:00:17.1]} 32... Rce7 {[%clk 0:00:09.3]} 33. Qxc5 {[%clk 0:00:14.6]}
33... Re1+ {[%clk 0:00:06.6]} 34. Rd1 {[%clk 0:00:14.7]} 34... Rxd1+ {[%clk
0:00:05.8]} 35. Rxd1 {[%clk 0:00:15.6]} 35... dxc5 {[%clk 0:00:06.2]} 36. d6
{[%clk 0:00:15.8]} 36... Rd8 {[%clk 0:00:06.2]} 37. a3 {[%clk 0:00:13.9]} 37...
Kf7 {[%clk 0:00:06]} 38. d7 {[%clk 0:00:13]} 38... Ke7 {[%clk 0:00:05.1]} 39.
Re1+ {[%clk 0:00:13]} 39... Kf6 {[%clk 0:00:05.3]} 40. Re8 {[%clk 0:00:13.3]}
1-0

[Event "Early-Titled-Tuesday-Blitz-October-24-2023"]
[Site "Chess.com"]
[Date "2023.10.24"]
[Round "3"]
[White "Tejas_Rama"]
[Black "Byniolus"]
[Result "1-0"]
[WhiteElo "2552"]
[BlackElo "2794"]
[TimeControl "180+1"]
[EndTime "8:27:40 PDT"]
[Termination "Tejas_Rama won on time"]

1. d4 {[%clk 0:03:00.9]} 1... d6 {[%clk 0:03:00.3]} 2. Nf3 {[%clk 0:03:00.3]}
2... Bg4 {[%clk 0:03:00.2]} 3. e3 {[%clk 0:02:59.4]} 3... Nf6 {[%clk 0:03:00.2]}
4. c4 {[%clk 0:02:59.1]} 4... c6 {[%clk 0:02:59.3]} 5. Nc3 {[%clk 0:02:58.6]}
5... Nbd7 {[%clk 0:02:58]} 6. Be2 {[%clk 0:02:58.6]} 6... e5 {[%clk 0:02:58.4]}
7. e4 {[%clk 0:02:57]} 7... Be7 {[%clk 0:02:57]} 8. O-O {[%clk 0:02:56.8]} 8...
O-O {[%clk 0:02:56.9]} 9. Be3 {[%clk 0:02:57]} 9... Re8 {[%clk 0:02:56]} 10. d5
{[%clk 0:02:53.4]} 10... a6 {[%clk 0:02:51.8]} 11. b4 {[%clk 0:02:49.2]} 11...
Qb8 {[%clk 0:02:36]} 12. Nd2 {[%clk 0:02:46.9]} 12... Bxe2 {[%clk 0:02:35.5]}
13. Qxe2 {[%clk 0:02:47.8]} 13... Rc8 {[%clk 0:02:32.2]} 14. Rfc1 {[%clk
0:02:40]} 14... Bd8 {[%clk 0:02:25]} 15. Rab1 {[%clk 0:02:25.6]} 15... b5 {[%clk
0:01:43]} 16. dxc6 {[%clk 0:02:18.3]} 16... Rxc6 {[%clk 0:01:43.9]} 17. cxb5
{[%clk 0:01:43.4]} 17... axb5 {[%clk 0:01:44.8]} 18. Nxb5 {[%clk 0:01:43.6]}
18... Rxc1+ {[%clk 0:01:36.7]} 19. Rxc1 {[%clk 0:01:44.5]} 19... Rxa2 {[%clk
0:01:33.6]} 20. Qc4 {[%clk 0:01:45.1]} 20... Ra8 {[%clk 0:01:13.5]} 21. Qc6
{[%clk 0:01:38.7]} 21... Be7 {[%clk 0:00:37]} 22. Ba7 {[%clk 0:01:10.6]} 22...
Qf8 {[%clk 0:00:20.6]} 23. Nc4 {[%clk 0:00:56.6]} 23... Rc8 {[%clk 0:00:15.8]}
24. Qb7 {[%clk 0:00:56.2]} 24... h5 {[%clk 0:00:12.4]} 25. Rc3 {[%clk
0:00:47.4]} 25... g6 {[%clk 0:00:06.7]} 26. Ne3 {[%clk 0:00:43.8]} 26... Rxc3
{[%clk 0:00:05.8]} 27. Nxc3 {[%clk 0:00:44.7]} 27... Qe8 {[%clk 0:00:03.5]} 28.
b5 {[%clk 0:00:40.5]} 28... Nc5 {[%clk 0:00:03]} 29. Bxc5 {[%clk 0:00:40]} 29...
dxc5 {[%clk 0:00:03.9]} 30. b6 {[%clk 0:00:33.8]} 30... Qd8 {[%clk 0:00:03.3]}
31. Ned5 {[%clk 0:00:29.5]} 31... Nxd5 {[%clk 0:00:03.2]} 32. Nxd5 {[%clk
0:00:27.8]} 32... Bd6 {[%clk 0:00:04.1]} 33. Qc6 {[%clk 0:00:23.9]} 33... Kg7
{[%clk 0:00:04.1]} 34. b7 {[%clk 0:00:24]} 34... h4 {[%clk 0:00:02.3]} 35. h3
{[%clk 0:00:14.7]} 35... Qb8 {[%clk 0:00:02.1]} 36. Qc8 {[%clk 0:00:14.4]} 36...
Qa7 {[%clk 0:00:02.7]} 37. Qa8 {[%clk 0:00:13.6]} 37... Qb8 {[%clk 0:00:02]} 38.
Nb6 {[%clk 0:00:11.7]} 38... Qc7 {[%clk 0:00:01.7]} 39. Nd5 {[%clk 0:00:09.5]}
39... Qb8 {[%clk 0:00:01.1]} 40. Nb6 {[%clk 0:00:10]} 40... Qc7 {[%clk
0:00:01.5]} 41. Nc4 {[%clk 0:00:10.7]} 41... Be7 {[%clk 0:00:01.4]} 42. b8=Q
{[%clk 0:00:10.4]} 1-0